{"text_format":"1","workbook":"xlsx","n_sheets":4,"sheets":["Course Descriptions","Enrollment Form","THERIGY Pharmacy Details","THERIGY Data Formatted"],"not_rendered":{"charts":0,"images":0,"macros":1,"external_links":0,"defined_names":0,"comments":0,"pivot_tables":0},"unopened":[],"bounds":{"document_bytes":16777216,"sheet_cells":100000,"rows_first":2000,"rows_last":500,"rows_between":2000,"halvings":0,"cell_chars":16384,"cell_head_chars":4096},"cells_cut":0,"cells_raw":0,"read":"whole","date_system":"1900"}

{"sheet":"Course Descriptions","index":0,"n_rows":10,"n_cols":2,"rows_kept":10,"cut":false,"hidden":false,"merged":[]}
["VILT Admin","Virtual Instructor-Led Training\nAdministrators\nThis course will teach pharmacy managers and directors, Pharmacists-in-Charge (PIC), pharmacy IT managers, and pharmacy administrators how to configure TherigySTM for daily use by specialty pharmacy staff."]
["VILT PCC","Virtual Instructor-Led Training\nPatient Care Coordinators\nPatient Care Coordinators (PCC)\nThis course is designed for those individuals who will be working with the administrative functions of the specialty pharmacy workflow (i.e., explaining the specialty pharmacy’s services, scheduling deliveries of medication, managing refills of medications and supplies, and arranging for payment of medications). Typically, those individuals with the role of Patient Care Coordinator, Pharmacy Technician, Patient Advocate, or Patient Account Representatives who are new to TherigySTM will need to attend this session. "]
["VILT Clinician","Virtual Instructor-Led Training\nClinician\nThis course is designed for those individuals who will be managing the clinical oversight of patients at the specialty pharmacy. Typically, those individuals with the role of Pharmacist in Charge, Pharmacy Manager, Staff Pharmacists, Clinical Nurse Educator, and Clinical Nurse who are new to TherigySTM will need to attend this session."]
["TKN TherigySTM","Therigy Knowledge Network Course (http://knowledge.therigy.com/)\nThis course is automatically assigned to every TherigySTM user, regardless of the user's Role or Privileges\nTherigySTM\nThis course is designed for specialty pharmacy staff who will use the non-clinical and clinical activities within TherigySTM. This course instructs users on how to set up their own user accounts, use the work queue, search for patients, add new patients, and complete both clinical and non-clinical activities.\n\nLearners will gain a better understanding of how TherigySTM’s framework fits into the specialty pharmacy workflow, the differences between clinical and non-clinical activities, when assessments are triggered, and the kinds of data that are collected in the clinical and non-clinical activities. Learners will then learn the practical skills needed to use TherigySTM on a daily basis. "]
["TKN TherigySTM for Admin","Therigy Knowledge Network Course (http://knowledge.therigy.com/)\nEnrollment in the TKN TherigySTM for Admin also enrolls users in the Customizing TherigySTM Content with Assessment Manager course within the Therigy Knowledge Network\nTherigySTM for Administrators: Configuring, Deploying, and Maintaining TherigySTM\nThis course is designed for specialty pharmacy staff who will use the non-clinical and clinical activities within TherigySTM. This course instructs users on how to set up their own user accounts, use the work queue, search for patients, add new patients, and complete both clinical and non-clinical activities.\n\nLearners will gain a better understanding of how TherigySTM’s framework fits into the specialty pharmacy workflow, the differences between clinical and non-clinical activities, when assessments are triggered, and the kinds of data that are collected in the clinical and non-clinical activities. Learners will then learn the practical skills needed to use TherigySTM on a daily basis. \n\nCustomizing TherigySTM Content with Assessment Manager\nThis course is designed for those TherigySTM users with either Branch Admin or Company Admin privileges to create and edit both clinical and non-clinical content within TherigySTM. This course teaches users how to customize Therigy-created questions and answers and create new assessments within TherigySTM.\n\nThis course is designed for experienced TherigySTM users who have the credentials and authority to make pharmacy-wide edits to existing clinical and non-clinical content and create new clinical and non-clinical activities/assessments for all specialty pharmacy users of TherigySTM. Typically, those individuals with the role of Pharmacist in Charge, Pharmacy Manager, Clinical Nurse Educator, and Clinical Nurse will need to attend this session.\n\nAfter successfully completing this course, learners will be able to edit questions, add new questions, and create branching logic within existing TherigySTM activities/assessments. Course attendees will also learn how to create new assessments/activities with the same functionality as Therigy-developed activities/assessments."]
["TKN Referral Manager","Therigy Knowledge Network Course (http://knowledge.therigy.com/)\nReferral Manager\nTherigySTM's Referral Manager provides a reliable way to support the management, tracking, and reporting of referrals during the approval process. TherigySTM's Referral Manager captures necessary data regarding specialty referral status through benefits investigation, prior authorization, patient assistance, and scheduling while documenting each of the subordinate processes. The Referral Manager work flow moves the referral through the approval process while enabling documentation required for analysis and reporting.\n\nReferrals are medication-specific, although you can create one referral with multiple medications. Within a referral, TherigySTM allows users to capture relevant data about the prescription, document communications between your pharmacy and the physician's office or patient, and manage all benefits investigation, prior authorization, and financial assistance activities. "]
["TKN Reporting","Therigy Knowledge Network Course (http://knowledge.therigy.com/)\nTherigySTM Reporting\nThis course is designed for those individuals who need to create reports from data collected within TherigySTM. This course teaches users how to create custom reports using Advanced Report Builder and extract data using Ad Hoc Reports. This course is designed for experienced TherigySTM users with “View General Reports” and “Use Advanced Reports” privileges who need to extract data from TherigySTM. After successfully completing this course, learners will be able to view and export preconfigured reports and create customized reports. "]
["TKN Protocol Manager","Therigy Knowledge Network Course (http://knowledge.therigy.com/)\nScheduling TherigySTM Workflow with Protocol Manager\nThis course teaches users how protocols trigger new activities and assessments within TherigySTM. It is designed for experienced TherigySTM users with “Edit Company Protocol Settings” privileges who have the credentials and authority to make pharmacy-wide edits to existing clinical and non-clinical protocols and create new clinical and non-clinical protocols for all specialty pharmacy users of TherigySTM.\n\nAfter successfully completing this course, learners will be able to customize when activities/assessments are automatically triggered to appear in the list of pending activities for a patient."]
["TKN CPR+","Therigy Knowledge Network Course (http://knowledge.therigy.com/)\nTherigySTM/CPR+ Integration\nThis course provides CPR+ users with the necessary information to integrate CPR+, a pharmacy dispensing system, with TherigySTM."]
["TKN Rx30","Therigy Knowledge Network Course (http://knowledge.therigy.com/)\nTherigySTM/Rx30 Integration\nThis course provides Rx30 users with the necessary information to integrate Rx30, a pharmacy dispensing system, with TherigySTM."]

{"sheet":"Enrollment Form","index":1,"n_rows":1,"n_cols":15,"rows_kept":1,"cut":false,"hidden":false,"merged":[]}
["First Name","Last Name","Pharmacy","Email","Title","VILT \nAdmin","VILT \nPCC","VILT \nClinician","TKN \nTherigySTM","TKN \nAdmin","TKN \nReferral Manager","TKN \nReporting","TKN \nProtocol Manager","TKN \nCPR+","TKN \nRx30"]

{"sheet":"THERIGY Pharmacy Details","index":2,"n_rows":4,"n_cols":1,"rows_kept":4,"cut":false,"hidden":true,"merged":[]}
["Pharmacy Name "]
["Account Number"]
["City, State"]
["URL"]

{"sheet":"THERIGY Data Formatted","index":3,"n_rows":30,"n_cols":31,"rows_kept":30,"cut":false,"hidden":false,"merged":[]}
["username","password","firstname","lastname","email","profile_field_title","institution","profile_field_salesforceaccntnumber","department","phone1","phone2","city","url","country","Basic","RM","Reporting","PM","Admin","CPR","Rx30","cohort1","cohort2","cohort3","cohort4","cohort5","cohort6","cohort7","VILT-Admin","VILT-PCC","VILT-Clinical"]
[{"$f":"LOWER(CONCATENATE('Enrollment Form'!$A2,\"_\",'Enrollment Form'!$B2))","v":"_"},null,{"$f":"'Enrollment Form'!$A2","v":0},{"$f":"'Enrollment Form'!$B2","v":0},{"$f":"'Enrollment Form'!$D2","v":0},{"$f":"'Enrollment Form'!$E2","v":0},{"$f":"'THERIGY Pharmacy Details'!$B$1","v":0},{"$f":"'THERIGY Pharmacy Details'!$B$2","v":0},null,null,null,{"$f":"'THERIGY Pharmacy Details'!$B$3","v":0},{"$f":"'THERIGY Pharmacy Details'!$B$4","v":0},"US",true,true,false,false,false,false,false,{"$f":"IF(($O2=TRUE),\"STM-100\",\"\")","v":"STM-100"},{"$f":"IF(($P2=TRUE),\"STM-101\",\"\")","v":"STM-101"},{"$f":"IF(($Q2=TRUE),\"STM-102\",\"\")","v":""},{"$f":"IF(($R2=TRUE),\"STM-201\",\"\")","v":""},{"$f":"IF(($S2=TRUE),\"STM-200\",\"\")","v":""},{"$f":"IF(($T2=TRUE),\"STM-301\",\"\")","v":""},{"$f":"IF(($U2=TRUE),\"STM-302\",\"\")","v":""},false,false,false]
[{"$f":"LOWER(CONCATENATE('Enrollment Form'!$A3,\"_\",'Enrollment Form'!$B3))","v":"_"},null,{"$f":"'Enrollment Form'!$A3","v":0},{"$f":"'Enrollment Form'!$B3","v":0},{"$f":"'Enrollment Form'!$D3","v":0},{"$f":"'Enrollment Form'!$E3","v":0},{"$f":"'THERIGY Pharmacy Details'!$B$1","v":0},{"$f":"'THERIGY Pharmacy Details'!$B$2","v":0},null,null,null,{"$f":"'THERIGY Pharmacy Details'!$B$3","v":0},{"$f":"'THERIGY Pharmacy Details'!$B$4","v":0},"US",true,false,false,false,false,false,false,{"$f":"IF(($O3=TRUE),\"STM-100\",\"\")","v":"STM-100"},{"$f":"IF(($P3=TRUE),\"STM-101\",\"\")","v":""},{"$f":"IF(($Q3=TRUE),\"STM-102\",\"\")","v":""},{"$f":"IF(($R3=TRUE),\"STM-201\",\"\")","v":""},{"$f":"IF(($S3=TRUE),\"STM-200\",\"\")","v":""},{"$f":"IF(($T3=TRUE),\"STM-301\",\"\")","v":""},{"$f":"IF(($U3=TRUE),\"STM-302\",\"\")","v":""},false,false,false]
[{"$f":"LOWER(CONCATENATE('Enrollment Form'!$A4,\"_\",'Enrollment Form'!$B4))","v":"_"},null,{"$f":"'Enrollment Form'!$A4","v":0},{"$f":"'Enrollment Form'!$B4","v":0},{"$f":"'Enrollment Form'!$D4","v":0},{"$f":"'Enrollment Form'!$E4","v":0},{"$f":"'THERIGY Pharmacy Details'!$B$1","v":0},{"$f":"'THERIGY Pharmacy Details'!$B$2","v":0},null,null,null,{"$f":"'THERIGY Pharmacy Details'!$B$3","v":0},{"$f":"'THERIGY Pharmacy Details'!$B$4","v":0},"US",true,false,false,false,false,false,false,{"$f":"IF(($O4=TRUE),\"STM-100\",\"\")","v":"STM-100"},{"$f":"IF(($P4=TRUE),\"STM-101\",\"\")","v":""},{"$f":"IF(($Q4=TRUE),\"STM-102\",\"\")","v":""},{"$f":"IF(($R4=TRUE),\"STM-201\",\"\")","v":""},{"$f":"IF(($S4=TRUE),\"STM-200\",\"\")","v":""},{"$f":"IF(($T4=TRUE),\"STM-301\",\"\")","v":""},{"$f":"IF(($U4=TRUE),\"STM-302\",\"\")","v":""},false,false,false]
[{"$f":"LOWER(CONCATENATE('Enrollment Form'!$A5,\"_\",'Enrollment Form'!$B5))","v":"_"},null,{"$f":"'Enrollment Form'!$A5","v":0},{"$f":"'Enrollment Form'!$B5","v":0},{"$f":"'Enrollment Form'!$D5","v":0},{"$f":"'Enrollment Form'!$E5","v":0},{"$f":"'THERIGY Pharmacy Details'!$B$1","v":0},{"$f":"'THERIGY Pharmacy Details'!$B$2","v":0},null,null,null,{"$f":"'THERIGY Pharmacy Details'!$B$3","v":0},{"$f":"'THERIGY Pharmacy Details'!$B$4","v":0},"US",true,false,false,false,false,false,false,{"$f":"IF(($O5=TRUE),\"STM-100\",\"\")","v":"STM-100"},{"$f":"IF(($P5=TRUE),\"STM-101\",\"\")","v":""},{"$f":"IF(($Q5=TRUE),\"STM-102\",\"\")","v":""},{"$f":"IF(($R5=TRUE),\"STM-201\",\"\")","v":""},{"$f":"IF(($S5=TRUE),\"STM-200\",\"\")","v":""},{"$f":"IF(($T5=TRUE),\"STM-301\",\"\")","v":""},{"$f":"IF(($U5=TRUE),\"STM-302\",\"\")","v":""},false,false,false]
[{"$f":"LOWER(CONCATENATE('Enrollment Form'!$A6,\"_\",'Enrollment Form'!$B6))","v":"_"},null,{"$f":"'Enrollment Form'!$A6","v":0},{"$f":"'Enrollment Form'!$B6","v":0},{"$f":"'Enrollment Form'!$D6","v":0},{"$f":"'Enrollment Form'!$E6","v":0},{"$f":"'THERIGY Pharmacy Details'!$B$1","v":0},{"$f":"'THERIGY Pharmacy Details'!$B$2","v":0},null,null,null,{"$f":"'THERIGY Pharmacy Details'!$B$3","v":0},{"$f":"'THERIGY Pharmacy Details'!$B$4","v":0},"US",true,false,false,false,false,false,false,{"$f":"IF(($O6=TRUE),\"STM-100\",\"\")","v":"STM-100"},{"$f":"IF(($P6=TRUE),\"STM-101\",\"\")","v":""},{"$f":"IF(($Q6=TRUE),\"STM-102\",\"\")","v":""},{"$f":"IF(($R6=TRUE),\"STM-201\",\"\")","v":""},{"$f":"IF(($S6=TRUE),\"STM-200\",\"\")","v":""},{"$f":"IF(($T6=TRUE),\"STM-301\",\"\")","v":""},{"$f":"IF(($U6=TRUE),\"STM-302\",\"\")","v":""},false,false,false]
[{"$f":"LOWER(CONCATENATE('Enrollment Form'!$A7,\"_\",'Enrollment Form'!$B7))","v":"_"},null,{"$f":"'Enrollment Form'!$A7","v":0},{"$f":"'Enrollment Form'!$B7","v":0},{"$f":"'Enrollment Form'!$D7","v":0},{"$f":"'Enrollment Form'!$E7","v":0},{"$f":"'THERIGY Pharmacy Details'!$B$1","v":0},{"$f":"'THERIGY Pharmacy Details'!$B$2","v":0},null,null,null,{"$f":"'THERIGY Pharmacy Details'!$B$3","v":0},{"$f":"'THERIGY Pharmacy Details'!$B$4","v":0},"US",true,false,false,false,false,false,false,{"$f":"IF(($O7=TRUE),\"STM-100\",\"\")","v":"STM-100"},{"$f":"IF(($P7=TRUE),\"STM-101\",\"\")","v":""},{"$f":"IF(($Q7=TRUE),\"STM-102\",\"\")","v":""},{"$f":"IF(($R7=TRUE),\"STM-201\",\"\")","v":""},{"$f":"IF(($S7=TRUE),\"STM-200\",\"\")","v":""},{"$f":"IF(($T7=TRUE),\"STM-301\",\"\")","v":""},{"$f":"IF(($U7=TRUE),\"STM-302\",\"\")","v":""},false,false,false]
[{"$f":"LOWER(CONCATENATE('Enrollment Form'!$A8,\"_\",'Enrollment Form'!$B8))","v":"_"},null,{"$f":"'Enrollment Form'!$A8","v":0},{"$f":"'Enrollment Form'!$B8","v":0},{"$f":"'Enrollment Form'!$D8","v":0},{"$f":"'Enrollment Form'!$E8","v":0},{"$f":"'THERIGY Pharmacy Details'!$B$1","v":0},{"$f":"'THERIGY Pharmacy Details'!$B$2","v":0},null,null,null,{"$f":"'THERIGY Pharmacy Details'!$B$3","v":0},{"$f":"'THERIGY Pharmacy Details'!$B$4","v":0},"US",true,false,false,false,false,false,false,"STM-100","","","","","","",false,false,false]
[{"$f":"LOWER(CONCATENATE('Enrollment Form'!$A9,\"_\",'Enrollment Form'!$B9))","v":"_"},null,{"$f":"'Enrollment Form'!$A9","v":0},{"$f":"'Enrollment Form'!$B9","v":0},{"$f":"'Enrollment Form'!$D9","v":0},{"$f":"'Enrollment Form'!$E9","v":0},{"$f":"'THERIGY Pharmacy Details'!$B$1","v":0},{"$f":"'THERIGY Pharmacy Details'!$B$2","v":0},null,null,null,{"$f":"'THERIGY Pharmacy Details'!$B$3","v":0},{"$f":"'THERIGY Pharmacy Details'!$B$4","v":0},"US",true,false,false,false,false,false,false,"STM-100","","","","","","",false,false,false]
[{"$f":"LOWER(CONCATENATE('Enrollment Form'!$A10,\"_\",'Enrollment Form'!$B10))","v":"_"},null,{"$f":"'Enrollment Form'!$A10","v":0},{"$f":"'Enrollment Form'!$B10","v":0},{"$f":"'Enrollment Form'!$D10","v":0},{"$f":"'Enrollment Form'!$E10","v":0},{"$f":"'THERIGY Pharmacy Details'!$B$1","v":0},{"$f":"'THERIGY Pharmacy Details'!$B$2","v":0},null,null,null,{"$f":"'THERIGY Pharmacy Details'!$B$3","v":0},{"$f":"'THERIGY Pharmacy Details'!$B$4","v":0},"US",true,false,false,false,false,false,false,"STM-100","","","","","","",false,false,false]
[{"$f":"LOWER(CONCATENATE('Enrollment Form'!$A11,\"_\",'Enrollment Form'!$B11))","v":"_"},null,{"$f":"'Enrollment Form'!$A11","v":0},{"$f":"'Enrollment Form'!$B11","v":0},{"$f":"'Enrollment Form'!$D11","v":0},{"$f":"'Enrollment Form'!$E11","v":0},{"$f":"'THERIGY Pharmacy Details'!$B$1","v":0},{"$f":"'THERIGY Pharmacy Details'!$B$2","v":0},null,null,null,{"$f":"'THERIGY Pharmacy Details'!$B$3","v":0},{"$f":"'THERIGY Pharmacy Details'!$B$4","v":0},"US",true,false,false,false,false,false,false,"STM-100","","","","","","",false,false,false]
[{"$f":"LOWER(CONCATENATE('Enrollment Form'!$A12,\"_\",'Enrollment Form'!$B12))","v":"_"},null,{"$f":"'Enrollment Form'!$A12","v":0},{"$f":"'Enrollment Form'!$B12","v":0},{"$f":"'Enrollment Form'!$D12","v":0},{"$f":"'Enrollment Form'!$E12","v":0},{"$f":"'THERIGY Pharmacy Details'!$B$1","v":0},{"$f":"'THERIGY Pharmacy Details'!$B$2","v":0},null,null,null,{"$f":"'THERIGY Pharmacy Details'!$B$3","v":0},{"$f":"'THERIGY Pharmacy Details'!$B$4","v":0},"US",true,false,false,false,false,false,false,"STM-100","","","","","","",false,false,false]
[{"$f":"LOWER(CONCATENATE('Enrollment Form'!$A13,\"_\",'Enrollment Form'!$B13))","v":"_"},null,{"$f":"'Enrollment Form'!$A13","v":0},{"$f":"'Enrollment Form'!$B13","v":0},{"$f":"'Enrollment Form'!$D13","v":0},{"$f":"'Enrollment Form'!$E13","v":0},{"$f":"'THERIGY Pharmacy Details'!$B$1","v":0},{"$f":"'THERIGY Pharmacy Details'!$B$2","v":0},null,null,null,{"$f":"'THERIGY Pharmacy Details'!$B$3","v":0},{"$f":"'THERIGY Pharmacy Details'!$B$4","v":0},"US",true,false,false,false,false,false,false,"STM-100","","","","","","",false,false,false]
[{"$f":"LOWER(CONCATENATE('Enrollment Form'!$A14,\"_\",'Enrollment Form'!$B14))","v":"_"},null,{"$f":"'Enrollment Form'!$A14","v":0},{"$f":"'Enrollment Form'!$B14","v":0},{"$f":"'Enrollment Form'!$D14","v":0},{"$f":"'Enrollment Form'!$E14","v":0},{"$f":"'THERIGY Pharmacy Details'!$B$1","v":0},{"$f":"'THERIGY Pharmacy Details'!$B$2","v":0},null,null,null,{"$f":"'THERIGY Pharmacy Details'!$B$3","v":0},{"$f":"'THERIGY Pharmacy Details'!$B$4","v":0},"US",true,false,false,false,false,false,false,"STM-100","","","","","","",false,false,false]
[{"$f":"LOWER(CONCATENATE('Enrollment Form'!$A15,\"_\",'Enrollment Form'!$B15))","v":"_"},null,{"$f":"'Enrollment Form'!$A15","v":0},{"$f":"'Enrollment Form'!$B15","v":0},{"$f":"'Enrollment Form'!$D15","v":0},{"$f":"'Enrollment Form'!$E15","v":0},{"$f":"'THERIGY Pharmacy Details'!$B$1","v":0},{"$f":"'THERIGY Pharmacy Details'!$B$2","v":0},null,null,null,{"$f":"'THERIGY Pharmacy Details'!$B$3","v":0},{"$f":"'THERIGY Pharmacy Details'!$B$4","v":0},"US",true,false,false,false,false,false,false,"STM-100","","","","","","",false,false,false]
[{"$f":"LOWER(CONCATENATE('Enrollment Form'!$A16,\"_\",'Enrollment Form'!$B16))","v":"_"},null,{"$f":"'Enrollment Form'!$A16","v":0},{"$f":"'Enrollment Form'!$B16","v":0},{"$f":"'Enrollment Form'!$D16","v":0},{"$f":"'Enrollment Form'!$E16","v":0},{"$f":"'THERIGY Pharmacy Details'!$B$1","v":0},{"$f":"'THERIGY Pharmacy Details'!$B$2","v":0},null,null,null,{"$f":"'THERIGY Pharmacy Details'!$B$3","v":0},{"$f":"'THERIGY Pharmacy Details'!$B$4","v":0},"US",true,false,false,false,false,false,false,"STM-100","","","","","","",false,false,false]
[{"$f":"LOWER(CONCATENATE('Enrollment Form'!$A17,\"_\",'Enrollment Form'!$B17))","v":"_"},null,{"$f":"'Enrollment Form'!$A17","v":0},{"$f":"'Enrollment Form'!$B17","v":0},{"$f":"'Enrollment Form'!$D17","v":0},{"$f":"'Enrollment Form'!$E17","v":0},{"$f":"'THERIGY Pharmacy Details'!$B$1","v":0},{"$f":"'THERIGY Pharmacy Details'!$B$2","v":0},null,null,null,{"$f":"'THERIGY Pharmacy Details'!$B$3","v":0},{"$f":"'THERIGY Pharmacy Details'!$B$4","v":0},"US",true,false,false,false,false,false,false,"STM-100","","","","","","",false,false,false]
[{"$f":"LOWER(CONCATENATE('Enrollment Form'!$A18,\"_\",'Enrollment Form'!$B18))","v":"_"},null,{"$f":"'Enrollment Form'!$A18","v":0},{"$f":"'Enrollment Form'!$B18","v":0},{"$f":"'Enrollment Form'!$D18","v":0},{"$f":"'Enrollment Form'!$E18","v":0},{"$f":"'THERIGY Pharmacy Details'!$B$1","v":0},{"$f":"'THERIGY Pharmacy Details'!$B$2","v":0},null,null,null,{"$f":"'THERIGY Pharmacy Details'!$B$3","v":0},{"$f":"'THERIGY Pharmacy Details'!$B$4","v":0},"US",true,false,false,false,false,false,false,"STM-100","","","","","","",false,false,false]
[{"$f":"LOWER(CONCATENATE('Enrollment Form'!$A19,\"_\",'Enrollment Form'!$B19))","v":"_"},null,{"$f":"'Enrollment Form'!$A19","v":0},{"$f":"'Enrollment Form'!$B19","v":0},{"$f":"'Enrollment Form'!$D19","v":0},{"$f":"'Enrollment Form'!$E19","v":0},{"$f":"'THERIGY Pharmacy Details'!$B$1","v":0},{"$f":"'THERIGY Pharmacy Details'!$B$2","v":0},null,null,null,{"$f":"'THERIGY Pharmacy Details'!$B$3","v":0},{"$f":"'THERIGY Pharmacy Details'!$B$4","v":0},"US",true,false,false,false,false,false,false,"STM-100","","","","","","",false,false,false]
[{"$f":"LOWER(CONCATENATE('Enrollment Form'!$A20,\"_\",'Enrollment Form'!$B20))","v":"_"},null,{"$f":"'Enrollment Form'!$A20","v":0},{"$f":"'Enrollment Form'!$B20","v":0},{"$f":"'Enrollment Form'!$D20","v":0},{"$f":"'Enrollment Form'!$E20","v":0},{"$f":"'THERIGY Pharmacy Details'!$B$1","v":0},{"$f":"'THERIGY Pharmacy Details'!$B$2","v":0},null,null,null,{"$f":"'THERIGY Pharmacy Details'!$B$3","v":0},{"$f":"'THERIGY Pharmacy Details'!$B$4","v":0},"US",true,false,false,false,false,false,false,"STM-100","","","","","","",false,false,false]
[{"$f":"LOWER(CONCATENATE('Enrollment Form'!$A21,\"_\",'Enrollment Form'!$B21))","v":"_"},null,{"$f":"'Enrollment Form'!$A21","v":0},{"$f":"'Enrollment Form'!$B21","v":0},{"$f":"'Enrollment Form'!$D21","v":0},{"$f":"'Enrollment Form'!$E21","v":0},{"$f":"'THERIGY Pharmacy Details'!$B$1","v":0},{"$f":"'THERIGY Pharmacy Details'!$B$2","v":0},null,null,null,{"$f":"'THERIGY Pharmacy Details'!$B$3","v":0},{"$f":"'THERIGY Pharmacy Details'!$B$4","v":0},"US",true,false,false,false,false,false,false,"STM-100","","","","","","",false,false,false]
[{"$f":"LOWER(CONCATENATE('Enrollment Form'!$A22,\"_\",'Enrollment Form'!$B22))","v":"_"},null,{"$f":"'Enrollment Form'!$A22","v":0},{"$f":"'Enrollment Form'!$B22","v":0},{"$f":"'Enrollment Form'!$D22","v":0},{"$f":"'Enrollment Form'!$E22","v":0},{"$f":"'THERIGY Pharmacy Details'!$B$1","v":0},{"$f":"'THERIGY Pharmacy Details'!$B$2","v":0},null,null,null,{"$f":"'THERIGY Pharmacy Details'!$B$3","v":0},{"$f":"'THERIGY Pharmacy Details'!$B$4","v":0},"US",true,false,false,false,false,false,false,"STM-100","","","","","","",false,false,false]
[{"$f":"LOWER(CONCATENATE('Enrollment Form'!$A23,\"_\",'Enrollment Form'!$B23))","v":"_"},null,{"$f":"'Enrollment Form'!$A23","v":0},{"$f":"'Enrollment Form'!$B23","v":0},{"$f":"'Enrollment Form'!$D23","v":0},{"$f":"'Enrollment Form'!$E23","v":0},{"$f":"'THERIGY Pharmacy Details'!$B$1","v":0},{"$f":"'THERIGY Pharmacy Details'!$B$2","v":0},null,null,null,{"$f":"'THERIGY Pharmacy Details'!$B$3","v":0},{"$f":"'THERIGY Pharmacy Details'!$B$4","v":0},"US",true,false,false,false,false,false,false,"STM-100","","","","","","",false,false,false]
[{"$f":"LOWER(CONCATENATE('Enrollment Form'!$A24,\"_\",'Enrollment Form'!$B24))","v":"_"},null,{"$f":"'Enrollment Form'!$A24","v":0},{"$f":"'Enrollment Form'!$B24","v":0},{"$f":"'Enrollment Form'!$D24","v":0},{"$f":"'Enrollment Form'!$E24","v":0},{"$f":"'THERIGY Pharmacy Details'!$B$1","v":0},{"$f":"'THERIGY Pharmacy Details'!$B$2","v":0},null,null,null,{"$f":"'THERIGY Pharmacy Details'!$B$3","v":0},{"$f":"'THERIGY Pharmacy Details'!$B$4","v":0},"US",true,false,false,false,false,false,false,"STM-100","","","","","","",false,false,false]
[{"$f":"LOWER(CONCATENATE('Enrollment Form'!$A25,\"_\",'Enrollment Form'!$B25))","v":"_"},null,{"$f":"'Enrollment Form'!$A25","v":0},{"$f":"'Enrollment Form'!$B25","v":0},{"$f":"'Enrollment Form'!$D25","v":0},{"$f":"'Enrollment Form'!$E25","v":0},{"$f":"'THERIGY Pharmacy Details'!$B$1","v":0},{"$f":"'THERIGY Pharmacy Details'!$B$2","v":0},null,null,null,{"$f":"'THERIGY Pharmacy Details'!$B$3","v":0},{"$f":"'THERIGY Pharmacy Details'!$B$4","v":0},"US",true,false,false,false,false,false,false,"STM-100","","","","","","",false,false,false]
[{"$f":"LOWER(CONCATENATE('Enrollment Form'!$A26,\"_\",'Enrollment Form'!$B26))","v":"_"},null,{"$f":"'Enrollment Form'!$A26","v":0},{"$f":"'Enrollment Form'!$B26","v":0},{"$f":"'Enrollment Form'!$D26","v":0},{"$f":"'Enrollment Form'!$E26","v":0},{"$f":"'THERIGY Pharmacy Details'!$B$1","v":0},{"$f":"'THERIGY Pharmacy Details'!$B$2","v":0},null,null,null,{"$f":"'THERIGY Pharmacy Details'!$B$3","v":0},{"$f":"'THERIGY Pharmacy Details'!$B$4","v":0},"US",true,false,false,false,false,false,false,"STM-100","","","","","","",false,false,false]
[{"$f":"LOWER(CONCATENATE('Enrollment Form'!$A27,\"_\",'Enrollment Form'!$B27))","v":"_"},null,{"$f":"'Enrollment Form'!$A27","v":0},{"$f":"'Enrollment Form'!$B27","v":0},{"$f":"'Enrollment Form'!$D27","v":0},{"$f":"'Enrollment Form'!$E27","v":0},{"$f":"'THERIGY Pharmacy Details'!$B$1","v":0},{"$f":"'THERIGY Pharmacy Details'!$B$2","v":0},null,null,null,{"$f":"'THERIGY Pharmacy Details'!$B$3","v":0},{"$f":"'THERIGY Pharmacy Details'!$B$4","v":0},"US",true,false,false,false,false,false,false,"STM-100","","","","","","",false,false,false]
[{"$f":"LOWER(CONCATENATE('Enrollment Form'!$A28,\"_\",'Enrollment Form'!$B28))","v":"_"},null,{"$f":"'Enrollment Form'!$A28","v":0},{"$f":"'Enrollment Form'!$B28","v":0},{"$f":"'Enrollment Form'!$D28","v":0},{"$f":"'Enrollment Form'!$E28","v":0},{"$f":"'THERIGY Pharmacy Details'!$B$1","v":0},{"$f":"'THERIGY Pharmacy Details'!$B$2","v":0},null,null,null,{"$f":"'THERIGY Pharmacy Details'!$B$3","v":0},{"$f":"'THERIGY Pharmacy Details'!$B$4","v":0},"US",true,false,false,false,false,false,false,"STM-100","","","","","","",false,false,false]
[{"$f":"LOWER(CONCATENATE('Enrollment Form'!$A29,\"_\",'Enrollment Form'!$B29))","v":"_"},null,{"$f":"'Enrollment Form'!$A29","v":0},{"$f":"'Enrollment Form'!$B29","v":0},{"$f":"'Enrollment Form'!$D29","v":0},{"$f":"'Enrollment Form'!$E29","v":0},{"$f":"'THERIGY Pharmacy Details'!$B$1","v":0},{"$f":"'THERIGY Pharmacy Details'!$B$2","v":0},null,null,null,{"$f":"'THERIGY Pharmacy Details'!$B$3","v":0},{"$f":"'THERIGY Pharmacy Details'!$B$4","v":0},"US",true,false,false,false,false,false,false,"STM-100","","","","","","",false,false,false]
[{"$f":"LOWER(CONCATENATE('Enrollment Form'!$A30,\"_\",'Enrollment Form'!$B30))","v":"_"},null,{"$f":"'Enrollment Form'!$A30","v":0},{"$f":"'Enrollment Form'!$B30","v":0},{"$f":"'Enrollment Form'!$D30","v":0},{"$f":"'Enrollment Form'!$E30","v":0},{"$f":"'THERIGY Pharmacy Details'!$B$1","v":0},{"$f":"'THERIGY Pharmacy Details'!$B$2","v":0},null,null,null,{"$f":"'THERIGY Pharmacy Details'!$B$3","v":0},{"$f":"'THERIGY Pharmacy Details'!$B$4","v":0},"US",true,false,false,false,false,false,false,"STM-100","","","","","","",false,false,false]